[Event "Live Chess"]
[Site "Chess.com"]
[Date "2024.06.01"]
[Round "-"]
[White "toog"]
[Black "Dhaydon19"]
[Result "1/2-1/2"]
[WhiteElo "2609"]
[BlackElo "2677"]
[TimeControl "300"]
[EndTime "15:43:48 PDT"]
[Termination "Game drawn - insufficient material"]

1. d4 {[%clk 0:04:53.5]} 1... e6 {[%clk 0:04:59.3]} 2. Nf3 {[%clk 0:04:51.2]}
2... d5 {[%clk 0:04:58.9]} 3. Bf4 {[%clk 0:04:50]} 3... Nf6 {[%clk 0:04:58.6]}
4. e3 {[%clk 0:04:49]} 4... Bd6 {[%clk 0:04:58.3]} 5. Bg3 {[%clk 0:04:46.5]}
5... Qe7 {[%clk 0:04:57.2]} 6. Nbd2 {[%clk 0:04:45.1]} 6... Nbd7 {[%clk
0:04:56.8]} 7. Bd3 {[%clk 0:04:42]} 7... e5 {[%clk 0:04:55.7]} 8. dxe5 {[%clk
0:04:40.8]} 8... Nxe5 {[%clk 0:04:55.4]} 9. Nxe5 {[%clk 0:04:39.9]} 9... Bxe5
{[%clk 0:04:55.1]} 10. c3 {[%clk 0:04:38.2]} 10... c6 {[%clk 0:04:53.3]} 11. Nf3
{[%clk 0:04:34.9]} 11... Bxg3 {[%clk 0:04:52.4]} 12. hxg3 {[%clk 0:04:34.8]}
12... Bg4 {[%clk 0:04:51.6]} 13. Qa4 {[%clk 0:04:31.4]} 13... h6 {[%clk
0:04:48.4]} 14. Qf4 {[%clk 0:04:17.7]} 14... Bxf3 {[%clk 0:04:40.9]} 15. gxf3
{[%clk 0:04:15.2]} 15... Rd8 {[%clk 0:04:38.6]} 16. O-O-O {[%clk 0:04:13.2]}
16... Qd6 {[%clk 0:04:36.8]} 17. Qxd6 {[%clk 0:04:08.7]} 17... Rxd6 {[%clk
0:04:35.4]} 18. g4 {[%clk 0:04:07.8]} 18... Rf8 {[%clk 0:04:33.2]} 19. Rdg1
{[%clk 0:04:05.7]} 19... Ke7 {[%clk 0:04:30.7]} 20. g5 {[%clk 0:04:03]} 20...
hxg5 {[%clk 0:04:29.7]} 21. Rxg5 {[%clk 0:04:02.8]} 21... g6 {[%clk 0:04:27.9]}
22. Kd2 {[%clk 0:03:59.8]} 22... Rfd8 {[%clk 0:04:16.6]} 23. Ke2 {[%clk
0:03:57.1]} 23... Kf8 {[%clk 0:04:15.2]} 24. a4 {[%clk 0:03:49.8]} 24... Kg7
{[%clk 0:04:13.6]} 25. b4 {[%clk 0:03:42.5]} 25... a6 {[%clk 0:04:09.2]} 26.
Rhg1 {[%clk 0:03:40.2]} 26... Kf8 {[%clk 0:04:06.9]} 27. Rb1 {[%clk 0:03:34]}
27... Re8 {[%clk 0:04:05.8]} 28. Rgg1 {[%clk 0:03:24.2]} 28... d4 {[%clk
0:03:58.6]} 29. cxd4 {[%clk 0:03:22.6]} 29... Rxd4 {[%clk 0:03:57.4]} 30. b5
{[%clk 0:03:09.5]} 30... cxb5 {[%clk 0:03:55.3]} 31. axb5 {[%clk 0:03:09.4]}
31... Nd5 {[%clk 0:03:48.4]} 32. Kd2 {[%clk 0:03:05.7]} 32... Ra4 {[%clk
0:03:45.2]} 33. Ra1 {[%clk 0:03:00.3]} 33... Rxa1 {[%clk 0:03:41.8]} 34. Rxa1
{[%clk 0:03:00.2]} 34... axb5 {[%clk 0:03:41.1]} 35. Bxb5 {[%clk 0:02:57.6]}
35... Rd8 {[%clk 0:03:40.3]} 36. Ke1 {[%clk 0:02:54.5]} 36... Nb4 {[%clk
0:03:33.2]} 37. Ra7 {[%clk 0:02:46.3]} 37... Rb8 {[%clk 0:03:27.7]} 38. Ke2
{[%clk 0:02:44.8]} 38... Nd5 {[%clk 0:03:26.3]} 39. Bd3 {[%clk 0:02:41.2]} 39...
b5 {[%clk 0:03:22.4]} 40. Bc2 {[%clk 0:02:35.1]} 40... Re8 {[%clk 0:03:03]} 41.
Bb3 {[%clk 0:02:29.6]} 41... Ne7 {[%clk 0:02:57.6]} 42. Rb7 {[%clk 0:02:28.3]}
42... Rc8 {[%clk 0:02:51.2]} 43. Rxb5 {[%clk 0:02:26.1]} 43... Rc7 {[%clk
0:02:50.4]} 44. f4 {[%clk 0:02:21.8]} 44... Kg7 {[%clk 0:02:49.7]} 45. Kf3
{[%clk 0:02:20.4]} 45... Nf5 {[%clk 0:02:48.4]} 46. Bd5 {[%clk 0:02:13.1]} 46...
Rd7 {[%clk 0:02:42.8]} 47. Be4 {[%clk 0:02:10.3]} 47... Ne7 {[%clk 0:02:41.5]}
48. f5 {[%clk 0:02:07.1]} 48... gxf5 {[%clk 0:02:39]} 49. Bxf5 {[%clk 0:02:07]}
49... Rd6 {[%clk 0:02:38]} 50. Be4 {[%clk 0:02:05.3]} 50... Rf6+ {[%clk
0:02:36.8]} 51. Ke2 {[%clk 0:02:04.2]} 51... Re6 {[%clk 0:02:36.5]} 52. Rb4
{[%clk 0:02:02.5]} 52... Kf6 {[%clk 0:02:34.6]} 53. f4 {[%clk 0:02:01.4]} 53...
Ra6 {[%clk 0:02:32.5]} 54. Kf3 {[%clk 0:02:00.3]} 54... Ra3 {[%clk 0:02:31.8]}
55. Rb6+ {[%clk 0:01:58.3]} 55... Kg7 {[%clk 0:02:31.1]} 56. f5 {[%clk
0:01:49.9]} 56... Ng8 {[%clk 0:02:28.3]} 57. Kf4 {[%clk 0:01:46.1]} 57... Nf6
{[%clk 0:02:23.3]} 58. Bf3 {[%clk 0:01:42.1]} 58... Ra4+ {[%clk 0:02:20.3]} 59.
Kg3 {[%clk 0:01:39.2]} 59... Ra3 {[%clk 0:02:18.2]} 60. Kf2 {[%clk 0:01:35.5]}
60... Ra2+ {[%clk 0:02:16.8]} 61. Ke1 {[%clk 0:01:33.7]} 61... Ra3 {[%clk
0:02:16.3]} 62. Kd2 {[%clk 0:01:29.5]} 62... Ra2+ {[%clk 0:02:15.6]} 63. Kc3
{[%clk 0:01:26.9]} 63... Ra3+ {[%clk 0:02:14.7]} 64. Rb3 {[%clk 0:01:25.4]}
64... Ra4 {[%clk 0:02:12.1]} 65. Kd3 {[%clk 0:01:22.1]} 65... Kh6 {[%clk
0:02:08.8]} 66. e4 {[%clk 0:01:19.2]} 66... Kg5 {[%clk 0:02:05.5]} 67. Ke3
{[%clk 0:01:17.7]} 67... Ra7 {[%clk 0:02:01.5]} 68. e5 {[%clk 0:01:15.7]} 68...
Nd7 {[%clk 0:02:00.5]} 69. e6 {[%clk 0:01:13.4]} 69... fxe6 {[%clk 0:01:52.3]}
70. fxe6 {[%clk 0:01:13.3]} 70... Ne5 {[%clk 0:01:48]} 71. Rb5 {[%clk
0:01:08.3]} 71... Kf6 {[%clk 0:01:46.5]} 72. Bd5 {[%clk 0:01:01.4]} 72... Ra3+
{[%clk 0:01:43.5]} 73. Bb3 {[%clk 0:00:59.8]} 73... Ra7 {[%clk 0:01:40.4]} 74.
Ke4 {[%clk 0:00:57.4]} 74... Ng6 {[%clk 0:01:31]} 75. Rf5+ {[%clk 0:00:56.5]}
75... Kg7 {[%clk 0:01:30.5]} 76. Rd5 {[%clk 0:00:51.2]} 76... Kf6 {[%clk
0:01:28.6]} 77. Rf5+ {[%clk 0:00:44.4]} 77... Kg7 {[%clk 0:01:27.1]} 78. Rf1
{[%clk 0:00:43.7]} 78... Rb7 {[%clk 0:01:23.1]} 79. Bc4 {[%clk 0:00:40.9]} 79...
Rc7 {[%clk 0:01:21.3]} 80. Kd4 {[%clk 0:00:39.5]} 80... Re7 {[%clk 0:01:18.9]}
81. Bd5 {[%clk 0:00:37.4]} 81... Ra7 {[%clk 0:01:17.5]} 82. Kc5 {[%clk
0:00:36.5]} 82... Ra5+ {[%clk 0:01:15.3]} 83. Kd6 {[%clk 0:00:35.5]} 83... Ra6+
{[%clk 0:01:14.9]} 84. Bc6 {[%clk 0:00:34.7]} 84... Ra7 {[%clk 0:01:14.2]} 85.
Rb1 {[%clk 0:00:22.4]} 85... Ne7 {[%clk 0:01:11.9]} 86. Rg1+ {[%clk 0:00:19.1]}
86... Kf6 {[%clk 0:01:10.6]} 87. Rf1+ {[%clk 0:00:18.6]} 87... Nf5+ {[%clk
0:01:10]} 88. Rxf5+ {[%clk 0:00:16.2]} 88... Kxf5 {[%clk 0:01:08]} 89. e7 {[%clk
0:00:16.1]} 89... Rxe7 {[%clk 0:01:04.9]} 90. Kxe7 {[%clk 0:00:16]} 1/2-1/2

[Event "Live Chess"]
[Site "Chess.com"]
[Date "2024.06.01"]
[Round "-"]
[White "oscalik"]
[Black "cymbalshift"]
[Result "1-0"]
[WhiteElo "2304"]
[BlackElo "1692"]
[TimeControl "300"]
[EndTime "15:44:01 PDT"]
[Termination "oscalik won by resignation"]

1. e4 {[%clk 0:04:54.8]} 1... e5 {[%clk 0:04:58.3]} 2. Nc3 {[%clk 0:04:51.8]}
2... Nf6 {[%clk 0:04:55.8]} 3. Nf3 {[%clk 0:04:47.4]} 3... Nc6 {[%clk
0:04:52.8]} 4. Bb5 {[%clk 0:04:45.7]} 4... Bb4 {[%clk 0:04:44.9]} 5. O-O {[%clk
0:04:43.6]} 5... d6 {[%clk 0:04:31.5]} 6. Nd5 {[%clk 0:04:31.3]} 6... Bc5 {[%clk
0:04:15.7]} 7. d4 {[%clk 0:04:23.9]} 7... exd4 {[%clk 0:04:03.1]} 8. Nxd4 {[%clk
0:04:21.8]} 8... Bd7 {[%clk 0:04:01.8]} 9. Nf5 {[%clk 0:03:56.8]} 9... O-O
{[%clk 0:03:35.2]} 10. Bg5 {[%clk 0:03:43.1]} 10... Bxf5 {[%clk 0:03:06]} 11.
exf5 {[%clk 0:03:33.3]} 11... a6 {[%clk 0:03:01.8]} 12. Bxc6 {[%clk 0:03:26.7]}
12... bxc6 {[%clk 0:03:00.6]} 13. Nxf6+ {[%clk 0:03:24.4]} 13... gxf6 {[%clk
0:02:57.4]} 14. Bh6 {[%clk 0:03:15.4]} 14... Kh8 {[%clk 0:02:39.7]} 15. Bxf8
{[%clk 0:03:13.4]} 15... Qxf8 {[%clk 0:02:39.6]} 16. Re1 {[%clk 0:03:10]} 16...
d5 {[%clk 0:02:26.7]} 17. Qf3 {[%clk 0:03:02.3]} 17... Qh6 {[%clk 0:02:09.9]}
18. Re2 {[%clk 0:02:55.5]} 18... Rg8 {[%clk 0:02:01.5]} 19. Rae1 {[%clk
0:02:50]} 19... Bd6 {[%clk 0:01:52.7]} 20. h3 {[%clk 0:02:34.1]} 20... Qg5
{[%clk 0:01:15.3]} 21. Re8 {[%clk 0:02:27.3]} 21... Rxe8 {[%clk 0:01:00.8]} 22.
Rxe8+ {[%clk 0:02:23.9]} 22... Kg7 {[%clk 0:01:00.7]} 23. Qg4 {[%clk 0:02:15.9]}
23... h5 {[%clk 0:00:53.7]} 24. Qxg5+ {[%clk 0:02:12.3]} 24... fxg5 {[%clk
0:00:52.9]} 25. Ra8 {[%clk 0:02:10.9]} 25... g4 {[%clk 0:00:40.1]} 26. hxg4
{[%clk 0:01:56.9]} 26... hxg4 {[%clk 0:00:38.1]} 27. Rxa6 {[%clk 0:01:54.5]}
27... c5 {[%clk 0:00:33.5]} 28. a4 {[%clk 0:01:51.4]} 28... Kf6 {[%clk
0:00:28.4]} 29. a5 {[%clk 0:01:50]} 29... Kxf5 {[%clk 0:00:27.6]} 30. Rxd6
{[%clk 0:01:47.4]} 30... cxd6 {[%clk 0:00:26.2]} 31. a6 {[%clk 0:01:46.5]} 1-0

[Event "Live Chess"]
[Site "Chess.com"]
[Date "2024.06.01"]
[Round "-"]
[White "gmnorfolk"]
[Black "TedUdale"]
[Result "1-0"]
[WhiteElo "2100"]
[BlackElo "2096"]
[TimeControl "300"]
[EndTime "15:44:07 PDT"]
[Termination "gmnorfolk won by resignation"]

1. Nf3 {[%clk 0:04:56.3]} 1... Nf6 {[%clk 0:04:59.7]} 2. c4 {[%clk 0:04:54.9]}
2... b6 {[%clk 0:04:59.2]} 3. g3 {[%clk 0:04:52.9]} 3... Bb7 {[%clk 0:04:58.4]}
4. Bg2 {[%clk 0:04:52.5]} 4... c5 {[%clk 0:04:54.3]} 5. O-O {[%clk 0:04:52.4]}
5... e6 {[%clk 0:04:52.7]} 6. Nc3 {[%clk 0:04:51.4]} 6... Be7 {[%clk 0:04:51.7]}
7. b3 {[%clk 0:04:50.8]} 7... O-O {[%clk 0:04:51]} 8. Bb2 {[%clk 0:04:50.5]}
8... d5 {[%clk 0:04:50.4]} 9. cxd5 {[%clk 0:04:49]} 9... exd5 {[%clk 0:04:50.3]}
10. d4 {[%clk 0:04:48.1]} 10... h6 {[%clk 0:04:42.3]} 11. Rc1 {[%clk 0:04:22.5]}
11... Nc6 {[%clk 0:04:37.2]} 12. dxc5 {[%clk 0:04:18.7]} 12... bxc5 {[%clk
0:04:36.6]} 13. Na4 {[%clk 0:04:18]} 13... Ne4 {[%clk 0:04:29.4]} 14. Nd2 {[%clk
0:04:14.3]} 14... Nxd2 {[%clk 0:04:15.9]} 15. Qxd2 {[%clk 0:04:12.1]} 15... d4
{[%clk 0:04:04.9]} 16. Nxc5 {[%clk 0:04:09.8]} 16... Bc8 {[%clk 0:04:01.6]} 17.
Bxc6 {[%clk 0:04:06.9]} 17... Qb6 {[%clk 0:04:00.8]} 18. Nd3 {[%clk 0:04:03.3]}
18... Rb8 {[%clk 0:03:59]} 19. Bg2 {[%clk 0:03:57.9]} 19... Bg4 {[%clk
0:03:56.2]} 20. Rc6 {[%clk 0:03:55]} 20... Qb5 {[%clk 0:03:52.9]} 21. Rfc1
{[%clk 0:03:53.5]} 21... Bg5 {[%clk 0:03:44.7]} 22. f4 {[%clk 0:03:50.1]} 22...
Bf6 {[%clk 0:03:43]} 23. R1c5 {[%clk 0:03:45.3]} 23... Qb7 {[%clk 0:03:40.5]}
24. Rxf6 {[%clk 0:03:43.2]} 24... Qxg2+ {[%clk 0:03:38.6]} 25. Kxg2 {[%clk
0:03:41.3]} 25... gxf6 {[%clk 0:03:38.5]} 26. Bxd4 {[%clk 0:03:38.9]} 1-0

[Event "Live Chess"]
[Site "Chess.com"]
[Date "2024.06.01"]
[Round "-"]
[White "dmitro74"]
[Black "MaksymYurii"]
[Result "1-0"]
[WhiteElo "1649"]
[BlackElo "937"]
[TimeControl "300"]
[EndTime "15:44:14 PDT"]
[Termination "dmitro74 won by checkmate"]

1. d4 {[%clk 0:04:58.1]} 1... d5 {[%clk 0:04:57.5]} 2. c4 {[%clk 0:04:57]} 2...
e6 {[%clk 0:04:53.7]} 3. Nc3 {[%clk 0:04:55.5]} 3... Nf6 {[%clk 0:04:50.6]} 4.
Bg5 {[%clk 0:04:54.8]} 4... Bb4 {[%clk 0:04:48.7]} 5. a3 {[%clk 0:04:51.6]} 5...
h6 {[%clk 0:04:42.6]} 6. Bxf6 {[%clk 0:04:48.8]} 6... Bxc3+ {[%clk 0:04:37.6]}
7. bxc3 {[%clk 0:04:47.7]} 7... Qxf6 {[%clk 0:04:35.8]} 8. cxd5 {[%clk
0:04:46.6]} 8... exd5 {[%clk 0:04:32.6]} 9. Nf3 {[%clk 0:04:45.9]} 9... O-O
{[%clk 0:04:31]} 10. e3 {[%clk 0:04:44.5]} 10... Nc6 {[%clk 0:04:28.8]} 11. Bd3
{[%clk 0:04:41.2]} 11... Bf5 {[%clk 0:04:22.3]} 12. O-O {[%clk 0:04:39.1]} 12...
Bxd3 {[%clk 0:04:20.9]} 13. Qxd3 {[%clk 0:04:38.1]} 13... a5 {[%clk 0:04:15.9]}
14. c4 {[%clk 0:04:36.1]} 14... dxc4 {[%clk 0:04:10.4]} 15. Qxc4 {[%clk
0:04:34.8]} 15... b6 {[%clk 0:03:47.6]} 16. d5 {[%clk 0:04:30]} 16... Ne5 {[%clk
0:03:43.8]} 17. Nxe5 {[%clk 0:04:24.3]} 17... Qxe5 {[%clk 0:03:42.9]} 18. e4
{[%clk 0:04:21.2]} 18... Rac8 {[%clk 0:03:34.9]} 19. f4 {[%clk 0:04:17.2]} 19...
Qd6 {[%clk 0:03:28.4]} 20. e5 {[%clk 0:04:14.1]} 20... Qc5+ {[%clk 0:03:25.3]}
21. Qxc5 {[%clk 0:04:12.4]} 21... bxc5 {[%clk 0:03:25.2]} 22. Rac1 {[%clk
0:04:08.9]} 22... f6 {[%clk 0:03:14.7]} 23. Rxc5 {[%clk 0:04:04.1]} 23... fxe5
{[%clk 0:03:13]} 24. fxe5 {[%clk 0:04:03.3]} 24... Rfe8 {[%clk 0:03:10.7]} 25.
e6 {[%clk 0:03:58.3]} 25... c6 {[%clk 0:03:07.8]} 26. Rfc1 {[%clk 0:03:50.9]}
26... a4 {[%clk 0:02:52.1]} 27. Rxc6 {[%clk 0:03:48.2]} 27... Rb8 {[%clk
0:02:48.2]} 28. Rc7 {[%clk 0:03:35.3]} 28... Rb5 {[%clk 0:02:31.9]} 29. Rc8
{[%clk 0:03:27.5]} 29... Rxc8 {[%clk 0:02:27.2]} 30. Rxc8+ {[%clk 0:03:25.8]}
30... Kh7 {[%clk 0:02:26.3]} 31. e7 {[%clk 0:03:24.9]} 31... Rb1+ {[%clk
0:02:23.6]} 32. Kf2 {[%clk 0:03:23.2]} 32... Rb2+ {[%clk 0:02:22.5]} 33. Kf3
{[%clk 0:03:19.5]} 33... Rb3+ {[%clk 0:02:20.7]} 34. Kf4 {[%clk 0:03:17]} 34...
Rxa3 {[%clk 0:02:17.7]} 35. e8=Q {[%clk 0:03:15.3]} 35... Ra1 {[%clk 0:01:58.1]}
36. Qe4+ {[%clk 0:03:13.2]} 36... g6 {[%clk 0:01:53.6]} 37. Qe7# {[%clk
0:03:11.9]} 1-0

[Event "Live Chess"]
[Site "Chess.com"]
[Date "2024.06.01"]
[Round "-"]
[White "viktor_forever1994"]
[Black "wadsy27"]
[Result "0-1"]
[WhiteElo "1376"]
[BlackElo "2547"]
[TimeControl "300"]
[EndTime "15:44:36 PDT"]
[Termination "wadsy27 won by checkmate"]

1. e4 {[%clk 0:04:58]} 1... c5 {[%clk 0:04:49.6]} 2. Nf3 {[%clk 0:04:56.7]} 2...
e6 {[%clk 0:04:48]} 3. d4 {[%clk 0:04:52.3]} 3... cxd4 {[%clk 0:04:41.4]} 4.
Qxd4 {[%clk 0:04:52.2]} 4... Nc6 {[%clk 0:04:40.4]} 5. Qd1 {[%clk 0:04:51.6]}
5... Qc7 {[%clk 0:04:36.9]} 6. a3 {[%clk 0:04:49.4]} 6... Nf6 {[%clk 0:04:35.2]}
7. Nc3 {[%clk 0:04:44.4]} 7... a6 {[%clk 0:04:34.3]} 8. Bd3 {[%clk 0:04:32.9]}
8... b5 {[%clk 0:04:32.9]} 9. O-O {[%clk 0:04:31.2]} 9... Bb7 {[%clk 0:04:32.5]}
10. h3 {[%clk 0:04:29.2]} 10... Bc5 {[%clk 0:04:22.7]} 11. Qe2 {[%clk 0:04:22]}
11... h6 {[%clk 0:04:15.5]} 12. Be3 {[%clk 0:04:20.5]} 12... Bxe3 {[%clk
0:04:13.1]} 13. Qxe3 {[%clk 0:04:20.4]} 13... d6 {[%clk 0:04:07.8]} 14. Rfe1
{[%clk 0:04:10.4]} 14... Rc8 {[%clk 0:04:06]} 15. Rad1 {[%clk 0:03:51.4]} 15...
O-O {[%clk 0:04:03]} 16. e5 {[%clk 0:03:45.6]} 16... Nxe5 {[%clk 0:04:01.5]} 17.
Nxe5 {[%clk 0:03:39.7]} 17... dxe5 {[%clk 0:04:00]} 18. Qxe5 {[%clk 0:03:34.4]}
18... Qxe5 {[%clk 0:03:59.1]} 19. Rxe5 {[%clk 0:03:34.2]} 19... Rc7 {[%clk
0:03:58.5]} 20. Ne4 {[%clk 0:03:06.2]} 20... Nxe4 {[%clk 0:03:52.3]} 21. Bxe4
{[%clk 0:03:06.1]} 21... Bxe4 {[%clk 0:03:50.4]} 22. Rxe4 {[%clk 0:03:04.5]}
22... Rxc2 {[%clk 0:03:49.8]} 23. b4 {[%clk 0:02:55.7]} 23... Ra2 {[%clk
0:03:45]} 24. Rd3 {[%clk 0:02:48.6]} 24... Rc8 {[%clk 0:03:43.2]} 25. Rf4 {[%clk
0:02:35.2]} 25... e5 {[%clk 0:03:40.1]} 26. Rf5 {[%clk 0:02:27.2]} 26... f6
{[%clk 0:03:37.8]} 27. Rb3 {[%clk 0:01:59.1]} 27... Rc1+ {[%clk 0:03:33.3]} 28.
Kh2 {[%clk 0:01:57.7]} 28... Rcc2 {[%clk 0:03:33]} 29. Kg3 {[%clk 0:01:51.2]}
29... Kf7 {[%clk 0:03:31.9]} 30. Rff3 {[%clk 0:01:44.6]} 30... Ke6 {[%clk
0:03:30.5]} 31. Rbc3 {[%clk 0:01:35.9]} 31... g5 {[%clk 0:03:23.4]} 32. Rxc2
{[%clk 0:01:17]} 32... Rxc2 {[%clk 0:03:23.3]} 33. Kg4 {[%clk 0:01:14.7]} 33...
e4 {[%clk 0:03:21.6]} 34. Rf5 {[%clk 0:00:53.8]} 34... h5+ {[%clk 0:03:20.5]}
35. Kxh5 {[%clk 0:00:44]} 35... Kxf5 {[%clk 0:03:18.6]} 36. f4 {[%clk
0:00:33.9]} 36... exf3 {[%clk 0:03:17.2]} 37. gxf3 {[%clk 0:00:32.7]} 37... Rh2
{[%clk 0:03:16.3]} 38. Kh6 {[%clk 0:00:27.8]} 38... Rxh3+ {[%clk 0:03:15.4]} 39.
Kg7 {[%clk 0:00:27.7]} 39... Rh4 {[%clk 0:03:13.9]} 40. Kf7 {[%clk 0:00:26.7]}
40... Rh7+ {[%clk 0:03:12.8]} 41. Ke8 {[%clk 0:00:24.9]} 41... Ke6 {[%clk
0:03:11.9]} 42. Kd8 {[%clk 0:00:23.2]} 42... f5 {[%clk 0:03:09.8]} 43. Kc8
{[%clk 0:00:21.4]} 43... Kd6 {[%clk 0:03:09.1]} 44. Kb8 {[%clk 0:00:19.9]} 44...
Kc6 {[%clk 0:03:08.3]} 45. Kc8 {[%clk 0:00:18.1]} 45... Rh8# {[%clk 0:03:07.2]}
0-1

[Event "Live Chess"]
[Site "Chess.com"]
[Date "2024.06.01"]
[Round "-"]
[White "GoldsmanB"]
[Black "jimwad"]
[Result "0-1"]
[WhiteElo "1105"]
[BlackElo "1308"]
[TimeControl "300"]
[EndTime "15:45:07 PDT"]
[Termination "jimwad won by checkmate"]

1. d4 {[%clk 0:04:57.8]} 1... d5 {[%clk 0:04:58.1]} 2. Bf4 {[%clk 0:04:52.3]}
2... Bf5 {[%clk 0:04:56.6]} 3. c3 {[%clk 0:04:50.9]} 3... Nf6 {[%clk 0:04:55.1]}
4. Qb3 {[%clk 0:04:47.7]} 4... Qc8 {[%clk 0:04:52.9]} 5. Nf3 {[%clk 0:04:41.7]}
5... e6 {[%clk 0:04:51.5]} 6. e3 {[%clk 0:04:40.8]} 6... Nc6 {[%clk 0:04:48.4]}
7. Bb5 {[%clk 0:04:39.2]} 7... Bd6 {[%clk 0:04:36]} 8. Bg3 {[%clk 0:04:33.2]}
8... O-O {[%clk 0:04:34.1]} 9. Qa4 {[%clk 0:04:32.3]} 9... Ne7 {[%clk
0:04:26.2]} 10. Nbd2 {[%clk 0:04:27]} 10... Bxg3 {[%clk 0:04:24.1]} 11. hxg3
{[%clk 0:04:25.3]} 11... c6 {[%clk 0:04:22.3]} 12. Be2 {[%clk 0:04:23.4]} 12...
h6 {[%clk 0:04:18.7]} 13. O-O-O {[%clk 0:04:20.2]} 13... Ne4 {[%clk 0:04:13.6]}
14. Nxe4 {[%clk 0:04:14.3]} 14... Bxe4 {[%clk 0:04:11.7]} 15. Rh2 {[%clk
0:04:11.2]} 15... b5 {[%clk 0:03:58.9]} 16. Qb3 {[%clk 0:04:07.7]} 16... a5
{[%clk 0:03:56.8]} 17. a3 {[%clk 0:04:05.6]} 17... a4 {[%clk 0:03:54.2]} 18. Qa2
{[%clk 0:04:03.3]} 18... c5 {[%clk 0:03:38.4]} 19. Nd2 {[%clk 0:03:59.9]} 19...
Bg6 {[%clk 0:03:33.9]} 20. Bxb5 {[%clk 0:03:55.3]} 20... cxd4 {[%clk 0:03:29.5]}
21. exd4 {[%clk 0:03:49.7]} 21... Qb8 {[%clk 0:03:21.9]} 22. Be2 {[%clk
0:03:45.5]} 22... Rc8 {[%clk 0:03:07.8]} 23. Bh5 {[%clk 0:03:37.5]} 23... Bd3
{[%clk 0:03:03.7]} 24. Nf3 {[%clk 0:03:11.4]} 24... Qb7 {[%clk 0:02:28.1]} 25.
Rxd3 {[%clk 0:03:03.4]} 25... Nf5 {[%clk 0:02:19.3]} 26. Bg4 {[%clk 0:02:57.1]}
26... Nd6 {[%clk 0:02:17]} 27. Ne5 {[%clk 0:02:53.4]} 27... Ne4 {[%clk 0:02:10]}
28. f3 {[%clk 0:02:43.3]} 28... Nxg3 {[%clk 0:01:59.2]} 29. Rh3 {[%clk
0:02:36.1]} 29... Ne2+ {[%clk 0:01:56]} 30. Kd2 {[%clk 0:02:30.9]} 30... Nf4
{[%clk 0:01:54.9]} 31. Re3 {[%clk 0:02:24.9]} 31... Nxh3 {[%clk 0:01:53.4]} 32.
Bxh3 {[%clk 0:02:23.3]} 32... Qb5 {[%clk 0:01:46.8]} 33. Kc1 {[%clk 0:02:14.9]}
33... Qf1+ {[%clk 0:01:44.9]} 34. Kc2 {[%clk 0:02:12.7]} 34... Qf2+ {[%clk
0:01:43.1]} 35. Kd3 {[%clk 0:02:10.4]} 35... Qf1+ {[%clk 0:01:41.4]} 36. Re2
{[%clk 0:02:05.2]} 36... Qd1+ {[%clk 0:01:37.7]} 37. Rd2 {[%clk 0:02:02.4]}
37... Qf1+ {[%clk 0:01:36.4]} 38. Kc2 {[%clk 0:01:59.3]} 38... Rab8 {[%clk
0:01:16.7]} 39. Nd7 {[%clk 0:01:51.2]} 39... Rb7 {[%clk 0:01:14.5]} 40. Ne5
{[%clk 0:01:47.9]} 40... Qb5 {[%clk 0:01:08.1]} 41. Nd3 {[%clk 0:01:29.3]} 41...
Qa5 {[%clk 0:00:51.7]} 42. Nb4 {[%clk 0:01:25.5]} 42... Qc7 {[%clk 0:00:47.9]}
43. Rd3 {[%clk 0:01:20.2]} 43... Rcb8 {[%clk 0:00:45.2]} 44. b3 {[%clk
0:01:07.9]} 44... axb3+ {[%clk 0:00:43.1]} 45. Kxb3 {[%clk 0:01:01.6]} 45...
Qc4+ {[%clk 0:00:39.1]} 46. Kc2 {[%clk 0:00:51.7]} 46... Rxb4 {[%clk 0:00:34.5]}
47. Qxc4 {[%clk 0:00:48.3]} 47... Rxc4 {[%clk 0:00:32.3]} 48. Kd2 {[%clk
0:00:30.5]} 48... Ra4 {[%clk 0:00:25.9]} 49. Ke3 {[%clk 0:00:27.4]} 49... Rxa3
{[%clk 0:00:24.5]} 50. Kf4 {[%clk 0:00:26.4]} 50... Rbb3 {[%clk 0:00:23]} 51.
Ke5 {[%clk 0:00:23.9]} 51... Rxc3 {[%clk 0:00:21.4]} 52. Rxc3 {[%clk 0:00:23]}
52... Rxc3 {[%clk 0:00:20.2]} 53. Kd6 {[%clk 0:00:22.2]} 53... Rc8 {[%clk
0:00:16.6]} 54. g4 {[%clk 0:00:18.4]} 54... Kf8 {[%clk 0:00:15.2]} 55. f4 {[%clk
0:00:16.7]} 55... Ke8 {[%clk 0:00:14.2]} 56. g5 {[%clk 0:00:15.6]} 56... Rd8+
{[%clk 0:00:12.6]} 57. Ke5 {[%clk 0:00:14.3]} 57... Ke7 {[%clk 0:00:11.5]} 58.
gxh6 {[%clk 0:00:13.2]} 58... f6# {[%clk 0:00:10.1]} 0-1